{"text_format":"1","workbook":"xlsx","n_sheets":3,"sheets":["Guide d'utilisation","À remplir","Output - Facture"],"not_rendered":{"charts":0,"images":7,"macros":1,"external_links":0,"defined_names":1,"comments":0,"pivot_tables":0},"unopened":[],"bounds":{"document_bytes":16777216,"sheet_cells":100000,"rows_first":2000,"rows_last":500,"rows_between":2000,"halvings":0,"cell_chars":16384,"cell_head_chars":4096},"cells_cut":0,"cells_raw":0,"read":"whole","date_system":"1900"}

{"sheet":"Guide d'utilisation","index":0,"n_rows":81,"n_cols":6,"rows_kept":81,"cut":false,"hidden":false,"merged":[[50,5,53,5],[47,5,48,5],[56,1,57,5],[58,1,58,5],[27,4,27,5],[39,5,40,5],[41,5,42,5],[43,5,44,5],[45,5,46,5],[35,5,36,5],[59,1,61,5],[62,1,65,5],[7,1,7,5],[5,1,5,5],[6,1,6,5],[8,1,8,5],[18,1,18,2],[19,1,19,2],[18,5,19,5],[21,5,23,5],[12,5,14,5],[12,2,14,2],[32,2,33,2],[27,1,27,2],[30,5,31,5],[33,5,34,5],[77,2,78,2],[68,1,69,5],[70,1,70,5],[71,1,73,5],[74,1,76,5]]}
[]
[null,null,"Guide d'utilisation"]
[]
[]
[]
[null,"- Le gabarit est divisé en deux onglets, soit l'onglet Output - Facture Client et l'onglet À remplir"]
[null,"- L'onglet Output - Facture est l'output de l'onglet À remplir, c'est cet onglet qui devra être envoyé comme facture. "]
[null,"– Dans l'onglet Output - Facture, le détaillant doit  ajouter son logo à la facture avant l'envoi"]
[null,"- L'onglet À remplir représente la partie à remplir par le détaillant, les informations y étant entrées permettent la création de la facture."]
[]
[null,"Onglet À remplir"]
[]
[null,null,"Les cases en gris pâle doivent obligatoirement être remplies par le détaillant",null,null,"Afin d'accélérer le processus de facturation, les cases en bleu pâle sont déjà préremplies selon les hypothèses de bases détaillées à la Section 2- Hypothèses. Les données peuvent toutefois être modifiées par le détaillant si ce dernier juge que sa situation diffère matériellement du cas de base."]
[]
[]
[]
[null,"Information générale"]
[]
[null,"Le détaillant doit remplir les informations générales sur son commerce ainsi que sur le destinataire de la facture. Cette section devrait en principe n'être remplie qu'une seule fois.",null,null,null,"Si la superficie indiquée par le détaillant ne correspond à aucun des trois modèles standards de commerces, les hypothèses de bases  ne peuvent s'appliquer. Conséquemment, plusieurs cases en bleu se coloreront en gris et devront être remplies manuellement par le détaillant."]
[null,"Selon la superficie indiquée par le détaillant, celui-ci sera classifié selon l'un des trois modèles standards de commerces."]
[]
[null,null,"I) Commerces non traditionnels (100 000 pi² et +)",null,null,"Le coût mensuel du pi² correspond au coût d'espace mensuel (en dollars) déboursé par le détaillant divisé par le nombre de pi² loués."]
[null,null,"II) Grandes Épiceries (20 000 à 40 000 pi²) "]
[null,null,"III) Petites épiceries (en moyenne 10 000 pi²)"]
[]
[null,"Détails de la facturation"]
[]
[null,"En fonction des coûts encourus pour le mois de facturation, le détaillant doit obligatoirement remplir l'information concernant :",null,null,"Si nécessaire, le détaillant peut ensuite modifier l'information préremplie à propos de :"]
[null,null,"Le numéro de facture",null,null,"Prix payé pour une gobeuse"]
[null,null,"Le mois de facturation",null,null,"Durée d'amortissement (années) d'une gobeuse"]
[null,null,"La date de la facture",null,null,"Coût mensuel de la maintenance et de l'entretien pour une gobeuse"]
[null,null,"Le nombre de gobeuses en magasin"]
[null,null,"Les taux horaires estimés selon le type d'emploi pour la manutention et la comptabilité",null,null,"La superficie (en pi²) pour une gobeuse"]
[null,null,null,null,null,"La superficie (en pi²) pour l'espace de stockage à l'accueil du magasin ainsi que pour l'espace d'entreposage à l'arrière du magasin"]
[]
[null,null,null,null,null,"La durée de l'amortissement (années) de la clôture de l'espace d'entreposage"]
[]
[null,null,null,null,null,"Le prix payé pour la clôture de l'espace d'entreposage "]
[null,null,null,null,null,"Le nombre de chariots utilisés"]
[null,null,null,null,null,"Le prix payé pour un chariot et la durée de l'amortissement d'un chariot (années)"]
[]
[null,null,null,null,null,"Les heures de travail par type d'emploi nécessaire à la manutention et la comptabilité des consignes"]
[]
[null,null,null,null,null,"Le coût mensuel de l'électricité et des produits de nettoyage pour une gobeuse"]
[]
[null,null,null,null,null,"Le nombre de sacs et de pellicules d'emballage pour une palette utilisée"]
[]
[null,null,null,null,null,"Le coût unitaire des sacs et de la pellicule d'emballage pour une palette"]
[]
[]
[null,null,null,null,null,"Ces cellules se colorent de gris pâle (non préremplies) et doivent obligatoirement être remplies manuellement si la superficie indiquée par le détaillant ne peut se rattacher aux trois modèles standards de commerces"]
[]
[]
[]
[]
[]
[null,"Il est possible pour le détaillant d'ajouter des coûts à la facturation s’il le désire"]
[]
[null,"Pour ajouter des coûts fixes, le détaillant doit cliquer sur le bouton Autres coûts fixes et détailler ces coûts dans les nouvelles cases s'étant affichées. Ces coûts peuvent être amortissables ou standards et se reflèteront dans la facture envoyée"]
[null,"Dans la section coûts variables, le détaillant peut ajouter des postes de main-d'œuvre supplémentaires et spécifier le nombre d'heures et le taux horaire moyen attribués aux activités. Il est important de bien nommer les postes puisque ceux-ci se retrouveront dans la facture envoyée."]
[]
[]
[null,"Toujours dans la section coûts variables, le détaillant peut ajouter des postes de coûts supplémentaires comme l'impression, les coûts de transition ou autres coûts quantifiables jugés pertinents.  Il est important de bien nommer ces coûts puisqu'ils apparaitront sur la facture envoyée."]
[]
[]
[]
[]
[]
[null,"Il est possible que la Suite Office de votre poste de travail bloque l'exécution de macros provenant de sources inconnues"]
[]
[]
[]
[]
[]
[null,"Pour régler cette problématique, cliquez (avec le bouton droit de la souris) sur le fichier, puis  sélectionnez Propriétés dans le menu. En bas de l’onglet Général, vous devriez voir une section Sécurité. Cochez la case Débloquer. Vous devez préalablement avoir enregistré le fichier et fermé l'application."]
[]
[]
[null,null,"Si la problématique persiste, veuillez contacter vos services TI, ou encore, le service de support Microsoft"]
[]
[]
[null,null,"Plus d'aide"]

{"sheet":"À remplir","index":1,"n_rows":108,"n_cols":20,"rows_kept":108,"cut":false,"hidden":false,"merged":[]}
["MODÈLE À REMPLIR"]
[]
[null,"Insérer logo"]
[null,null,null,null,null,null,null,null,null,null,null,null,null,null,null,null,null,null,null,"Janvier"]
["Information générale",null,null,null,null,null,null,null,null,null,null,"2. Hypothèses",null,null,null,null,null,null,null,"Février"]
[null,null,null,null,null,null,null,null,null,null,null,null,null,null,null,null,null,null,null,"Mars"]
[null,"Nom du commerce",null,"X",null,null,null,null,null,null,null,"Type de commerce",null,null,null,null,null,"Oui",null,"Avril"]
[null,null,null,null,null,null,null,null,null,null,null,null,"Borne inférieure (en pi²)","Borne supérieure (en pi²)",null,null,null,"Non",null,"Mai"]
[null,"Adresse ligne 1",null,"1234, rue X",null,null,null,null,null,null,null,"Commerces non traditionnels",100000,10000000,null,null,null,null,null,"Juin"]
[null,"Adresse ligne 2",null,"Québec, Canada",null,null,null,null,null,null,null,"Grandes épiceries",20000,40000,null,null,null,null,null,"Juillet"]
[null,null,null,null,null,null,null,null,null,null,null,"Petites épiceries",2500,19999,null,null,null,null,null,"Août "]
[null,"Contact (@ ou téléphone)",null,"X@gmail.com",null,null,null,null,null,null,null,"Hors-normes","/","/",null,null,null,null,null,"Septembre"]
[null,null,null,null,null,null,null,null,null,null,null,null,null,null,null,null,null,null,null,"Octobre"]
[null,"Superficie",null,30000,null,null,null,null,null,null,null,"Gobeuses",null,null,null,null,null,null,null,"Novembre"]
[null,null,null,null,null,null,null,null,null,null,null,"Prix d'une gobeuse",18370,null,null,null,null,null,null,"Décembre"]
[null,"Type de commerce",null,{"$f":"IFERROR(_xlfn.IFS(AND(D14>=M11,D14<=N11),L11,AND(D14>=M10,D14<=N10),L10,AND(D14>=M9,D14<=N9),L9),\"Autres\")","v":"Grandes épiceries"},null,null,null,null,null,null,null,"Durée de l'amortissement d'une gobeuse",10]
[null,null,null,null,null,null,null,null,null,null,null,"Maintenance mensuelle",92.25]
[null,"Coût mensuel du pi2",null,1.5]
[null,null,null,null,null,null,null,null,null,null,null,"Espace"]
["Information du destinataire",null,null,null,null,null,null,null,null,null,null,"Superficie d'une gobeuse en pi²",7.5]
[]
[null,"Nom",null,"Union",null,null,null,null,null,null,null,null,{"$f":"L9","v":"Commerces non traditionnels"},{"$f":"L10","v":"Grandes épiceries"},{"$f":"L11","v":"Petites épiceries"}]
[null,null,null,null,null,null,null,null,null,null,null,"Espace de stockage à l'accueil en pi2",{"$f":"2.5*2.5","v":6.25},{"$f":"2.5*2.5","v":6.25},{"$f":"2.5*2.5","v":6.25}]
[null,"Adresse ligne 1",null,"5678, rue Y",null,null,null,null,null,null,null,"Espace d'entreposage des consignes en pi2",64,215,100]
[null,"Adresse ligne 2",null,"Québec, Canada"]
[null,null,null,null,null,null,null,null,null,null,null,"Clôture"]
[null,null,null,null,null,null,null,null,null,null,null,"Durée de l'amortissement de la clôture (année)",7]
["Détails de la facturation",null,null,null,null,null,null,null,null,null,null,null,"Commerces non traditionnels","Grandes épiceries","Petites épiceries"]
[null,null,null,null,null,null,null,null,null,null,null,"Prix de la clôture",2500,6500,0]
[null,"FACTURE N° :",null,12]
[null,null,null,null,null,null,null,null,null,null,null,"Chariot"]
[null,"Pour le mois de ",null,"Mars",null,null,null,null,null,null,null,"Prix d'un chariot",325]
[null,null,null,null,null,null,null,null,null,null,null,"Durée de l'amortissement d'un chariot (année)",7]
[null,"Date (AAAA-MM-JJ) :",null,"2023-08-31",null,null,null,null,null,null,null,null,"Commerces non traditionnels","Grandes épiceries","Petites épiceries"]
[null,null,null,null,null,null,null,null,null,null,null,"Nombre de chariots",1,2,1]
["Coûts fixes",null,null,null,null,null,null,{"$f":"SUM(I37:I75)","v":930.16071428571422}]
[null,null,null,"Nombre",null,"Prix d'une gobeuse",null,null,null,null,null,"Main d'œuvre et comptabilité"]
[null,"Gobeuses",null,2,null,{"$f":"M15","v":18370},null,null,{"$f":"((D38*F38)/12)/D40","v":306.16666666666663},null,null,null,"Commerces non traditionnels","Grandes épiceries","Petites épiceries"]
[null,null,null,"Amortissement (année)",null,null,null,null,null,null,null,"Caissier",0,18.826500737769109,1.1730283522373444]
[null,null,null,{"$f":"M16","v":10},null,null,null,null,null,null,null,"Commis",133.44,66.386066210080344,66.386068596786657]
[null,null,null,null,null,null,null,null,null,null,null,"Emballeur",0,15.861947527246279,15.861940990411787]
[null,null,null,null,null,"Coût/mois par gobeuse",null,null,null,null,null,"Réceptionnaire",0,4.8486872320165268,4.8486932009575572]
[null,"Maintenance des gobeuses",null,null,null,{"$f":"M17","v":92.25},null,null,{"$f":"F43*D38","v":184.5},null,null,"Comptabilité",4.2,5.4,4]
[]
[null,null,null,"Superficie en pi2",null,null,null,null,null,null,null,"Autres variables"]
[null,"Espace gobeuse",null,{"$f":"M20","v":7.5},null,null,null,null,{"$f":"D46*D38*D18","v":22.5},null,null,"Coût mensuel de l'électricité pour une gobeuse",{"$f":"2.3","v":2.2999999999999998}]
[null,"Espace de stockage à l'accueil",null,{"$f":"IFERROR(_xlfn.IFS(D16=M22,M23,D16=N22,N23,D16=O22,O23),\"À remplir\")","v":6.25},null,null,null,null,{"$f":"D47*D18","v":9.375},null,null,"Coût d'un rouleau pellicule d'emballage",0.8]
[null,"Espace d'entreposage",null,{"$f":"IFERROR(_xlfn.IFS(D16=M22,M24,D16=N22,N24,D16=O22,O24),\"À remplir\")","v":215},null,null,null,null,{"$f":"D48*D18","v":322.5},null,null,"Coût d'un sac",0.3]
[null,null,null,null,null,null,null,null,null,null,null,"Coût mensuel des produits de nettoyage pour une gobeuse",1.1000000000000001]
[null,null,null,"Amortissement (année)",null,"Prix de la clôture",null,null,null,null,null,null,{"$f":"M22","v":"Commerces non traditionnels"},{"$f":"N22","v":"Grandes épiceries"},{"$f":"O22","v":"Petites épiceries"}]
[null,"Cloture",null,{"$f":"M27","v":7},null,{"$f":"IFERROR(_xlfn.IFS(D16=M28,M29,D16=N28,N29,D16=O28,O29),\"À remplir\")","v":6500},null,null,{"$f":"(F51/D51)/12","v":77.38095238095238},null,null,"Pellicule d'emballage pour une palette : nombre par mois",3.5,3.5,3.5]
[null,null,null,null,null,null,null,null,null,null,null,"Sacs : nombre par mois",245,231,231]
[null,null,null,"Nombre",null,"Prix d'un chariot"]
[null,"Chariots",null,{"$f":"IFERROR(_xlfn.IFS(D16=M34,M35,D16=N34,N35,D16=O34,O35),\"À remplir\")","v":2},null,{"$f":"M32","v":325},null,null,{"$f":"((D54*F54)/D56)/12","v":7.7380952380952381}]
[null,null,null,"Amortissement (année)"]
[null,null,null,{"$f":"M33","v":7}]
[]
[]
[null,"Autre amortissable",null,{"$f":"D53","v":"Nombre"},null,"Prix"]
[null,null,null,{"$f":"IF(B60=0,0,\"À remplir\")","v":0},null,{"$f":"IF(B60=0,0,\"À remplir\")","v":0},null,null,{"$f":"IFERROR((D60*F60)/D62,0)/12","v":0}]
[null,null,null,{"$f":"D55","v":"Amortissement (année)"}]
[null,null,null,{"$f":"IF(B60=0,0,\"À remplir\")","v":0}]
[]
[null,"Autre amortissable",null,{"$f":"D59","v":"Nombre"},null,{"$f":"F59","v":"Prix"}]
[null,null,null,{"$f":"IF(B65=0,0,\"À remplir\")","v":0},null,{"$f":"IF(B65=0,0,\"À remplir\")","v":0},null,null,{"$f":"IFERROR((D65*F65)/D67,0)/12","v":0}]
[null,null,null,{"$f":"D61","v":"Amortissement (année)"}]
[null,null,null,{"$f":"IF(B65=0,0,\"À remplir\")","v":0}]
[]
[null,"Autres",null,null,null,"Coût mensuel"]
[null,null,null,null,null,{"$f":"IF(B70=0,0,\"À remplir\")","v":0},null,null,{"$f":"F70","v":0}]
[null,null,null,null,null,{"$f":"IF(B71=0,0,\"À remplir\")","v":0},null,null,{"$f":"F71","v":0}]
[null,null,null,null,null,{"$f":"IF(B72=0,0,\"À remplir\")","v":0},null,null,{"$f":"F72","v":0}]
[null,null,null,null,null,{"$f":"IF(B73=0,0,\"À remplir\")","v":0},null,null,{"$f":"F73","v":0}]
[null,null,null,null,null,{"$f":"IF(B74=0,0,\"À remplir\")","v":0},null,null,{"$f":"F74","v":0}]
[]
["Coûts variables",null,null,null,null,null,null,{"$f":"SUM(I77:I106)","v":2370.8036998891776}]
[]
[null,"Heures manutention",null,"Heures de travail",null,"Taux/h"]
[null,"Caissier",null,{"$f":"IFERROR(_xlfn.IFS(D16=M38,M39,D16=N38,N39,D16=O38,O39),\"À remplir\")","v":18.826500737769109},null,22,null,null,{"$f":"D79*F79","v":414.18301623092043}]
[null,"Commis",null,{"$f":"IFERROR(_xlfn.IFS(D16=M38,M40,D16=N38,N40,D16=O38,O40),\"À remplir\")","v":66.386066210080344},null,19,null,null,{"$f":"D80*F80","v":1261.3352579915265}]
[null,"Emballeur",null,{"$f":"IFERROR(_xlfn.IFS(D16=M38,M41,D16=N38,N41,D16=O38,O41),\"À remplir\")","v":15.861947527246279},null,18,null,null,{"$f":"D81*F81","v":285.51505549043304}]
[null,"Réceptionnaire",null,{"$f":"IFERROR(_xlfn.IFS(D16=M38,M42,D16=N38,N42,D16=O38,O42),\"À remplir\")","v":4.8486872320165268},null,18,null,null,{"$f":"D82*F82","v":87.27637017629749}]
[null,"Heures de comptabilité",null,{"$f":"IFERROR(_xlfn.IFS(D16=M38,M43,D16=N38,N43,D16=O38,O43),\"À remplir\")","v":5.4},null,45.11,null,null,{"$f":"D83*F83","v":243.59400000000002}]
[]
[null,"Autres postes",null,"Heures de travail",null,"Taux moyen/h"]
[null,null,null,{"$f":"IF(B86=0,0,\"À remplir\")","v":0},null,{"$f":"IF(B86=0,0,\"À remplir\")","v":0},null,null,{"$f":"IFERROR(D86*F86,0)","v":0}]
[null,null,null,{"$f":"IF(B87=0,0,\"À remplir\")","v":0},null,{"$f":"IF(B87=0,0,\"À remplir\")","v":0},null,null,{"$f":"IFERROR(D87*F87,0)","v":0}]
[null,null,null,{"$f":"IF(B88=0,0,\"À remplir\")","v":0},null,{"$f":"IF(B88=0,0,\"À remplir\")","v":0},null,null,{"$f":"IFERROR(D88*F88,0)","v":0}]
[null,null,null,{"$f":"IF(B89=0,0,\"À remplir\")","v":0},null,{"$f":"IF(B89=0,0,\"À remplir\")","v":0},null,null,{"$f":"IFERROR(D89*F89,0)","v":0}]
[]
[null,null,null,null,null,"Coût/mois par gobeuse"]
[null,"Électricité des gobeuses",null,null,null,{"$f":"M46","v":2.2999999999999998},null,null,{"$f":"F92*D38","v":4.5999999999999996}]
[null,"Produits de nettoyage des gobeuses",null,null,null,{"$f":"M49","v":1.1000000000000001},null,null,{"$f":"F93*D38","v":2.2000000000000002}]
[]
[null,null,null,"Nombre/mois",null,"Coût/unité"]
[null,"Pellicule d'emballage pour une palette",null,{"$f":"IFERROR(_xlfn.IFS(D16=M50,M51,D16=N50,N51,D16=O50,O51),\"À remplir\")","v":3.5},null,{"$f":"M47","v":0.8},null,null,{"$f":"D96*F96","v":2.8000000000000003}]
[null,"Sacs",null,{"$f":"IFERROR(_xlfn.IFS(D16=M50,M52,D16=N50,N52,D16=O50,O52),\"À remplir\")","v":231},null,{"$f":"M48","v":0.3},null,null,{"$f":"D97*F97","v":69.3}]
[]
[null,"Autres coûts variables ",null,null,null,"Coût"]
[null,null,null,null,null,{"$f":"IF(B100=0,0,\"À remplir\")","v":0},null,null,{"$f":"IFERROR(F100,0)","v":0}]
[null,null,null,null,null,{"$f":"IF(B101=0,0,\"À remplir\")","v":0},null,null,0]
[null,null,null,null,null,{"$f":"IF(B102=0,0,\"À remplir\")","v":0},null,null,0]
[null,null,null,null,null,0,null,null,0]
[null,null,null,null,null,0,null,null,0]
[null,null,null,null,null,0,null,null,0]
[]
[]
[null,null,null,null,"Coût total",null,null,null,{"$f":"SUM(I36:I106)","v":3300.9644141748918}]

{"sheet":"Output - Facture","index":2,"n_rows":60,"n_cols":7,"rows_kept":60,"cut":false,"hidden":false,"merged":[[1,1,3,1]]}
[]
[null,"Insérer Logo","FACTURE N° :",null,null,{"$f":"'À remplir'!D30","v":12}]
[null,null,"Pour le mois de :",null,null,{"$f":"'À remplir'!D32","v":"Mars"}]
[null,null,"En date du :",null,null,{"$f":"'À remplir'!D34","v":"2023-08-31"}]
[]
["Demandeur"]
[]
[null,"Nom du commerce :",{"$f":"'À remplir'!D7","v":"X"}]
[]
[null,"Adresse",{"$f":"'À remplir'!D9","v":"1234, rue X"}]
[null,null,{"$f":"'À remplir'!D10","v":"Québec, Canada"}]
[]
[null,"Contact",{"$f":"'À remplir'!D12","v":"X@gmail.com"}]
[]
[null,"Superficie (pi2) :",{"$f":"'À remplir'!D14","v":30000}]
[null,"Type de commerce :",{"$f":"'À remplir'!D16","v":"Grandes épiceries"}]
[]
["À l'intention de"]
[null,"Nom",{"$f":"'À remplir'!D22","v":"Union"}]
[null,"Adresse",{"$f":"'À remplir'!D24","v":"5678, rue Y"}]
[null,null,{"$f":"'À remplir'!D25","v":"Québec, Canada"}]
[]
["Détails de la facturation"]
["Coûts fixes",null,null,null,null,{"$f":"SUM(G25:G38)","v":930.16071428571422}]
[]
[null,"Gobeuses (amortissement, maintenance)",{"$f":"'À remplir'!D38","v":2},"x",{"$f":"((('À remplir'!F38)/12)/10)+'À remplir'!F43","v":245.33333333333331},null,{"$f":"'À remplir'!I38+'À remplir'!I43","v":490.66666666666663}]
[]
[null,"Espace requis",{"$f":"('À remplir'!D46*'À remplir'!D38)+'À remplir'!D47+'À remplir'!D48","v":236.25},"x",{"$f":"'À remplir'!D18","v":1.5},null,{"$f":"'À remplir'!I46+'À remplir'!I47+'À remplir'!I48","v":354.375}]
[]
[null,"Clôtures et chariots",null,null,null,null,{"$f":"'À remplir'!I51+'À remplir'!I54","v":85.11904761904762}]
[null,{"$f":"'À remplir'!B60","v":0},null,null,null,null,{"$f":"'À remplir'!I60","v":0}]
[null,{"$f":"'À remplir'!B65","v":0},null,null,null,null,{"$f":"'À remplir'!I65","v":0}]
[null,{"$f":"'À remplir'!B70","v":0},null,null,null,null,{"$f":"'À remplir'!I70","v":0}]
[null,{"$f":"'À remplir'!B71","v":0},null,null,null,null,{"$f":"'À remplir'!I71","v":0}]
[null,{"$f":"'À remplir'!B72","v":0},null,null,null,null,{"$f":"'À remplir'!I72","v":0}]
[null,{"$f":"'À remplir'!B73","v":0},null,null,null,null,{"$f":"'À remplir'!I73","v":0}]
[null,{"$f":"'À remplir'!B74","v":0},null,null,null,null,{"$f":"'À remplir'!I74","v":0}]
[]
["Coûts variables",null,null,null,null,{"$f":"SUM(G40:G58)","v":2370.8036998891776}]
[]
[null,"Manutention  (h)",{"$f":"SUM('À remplir'!D79:D82)","v":105.92320170711226},"x","Variable",null,{"$f":"SUM('À remplir'!I79:I82)","v":2048.3096998891774}]
[null,"Comptabilité (h)",{"$f":"'À remplir'!D83","v":5.4},"x",{"$f":"'À remplir'!F83","v":45.11},null,{"$f":"'À remplir'!I83","v":243.59400000000002}]
[null,{"$f":"'À remplir'!B86","v":0},{"$f":"'À remplir'!D86","v":0},{"$f":"IF(G43=0,,\"x\")","v":0},{"$f":"'À remplir'!F86","v":0},null,{"$f":"'À remplir'!I86","v":0}]
[null,{"$f":"'À remplir'!B87","v":0},{"$f":"'À remplir'!D87","v":0},{"$f":"IF(G44=0,,\"x\")","v":0},{"$f":"'À remplir'!F87","v":0},null,{"$f":"'À remplir'!I87","v":0}]
[null,{"$f":"'À remplir'!B88","v":0},{"$f":"'À remplir'!D88","v":0},0,{"$f":"'À remplir'!F88","v":0},null,{"$f":"'À remplir'!I88","v":0}]
[null,{"$f":"'À remplir'!B89","v":0},{"$f":"'À remplir'!D89","v":0},0,{"$f":"'À remplir'!F89","v":0},null,{"$f":"'À remplir'!I89","v":0}]
[]
[null,{"$f":"'À remplir'!B92","v":"Électricité des gobeuses"},null,null,null,null,{"$f":"'À remplir'!I92","v":4.5999999999999996}]
[null,{"$f":"'À remplir'!B93","v":"Produits de nettoyage des gobeuses"},null,null,null,null,{"$f":"'À remplir'!I93","v":2.2000000000000002}]
[null,{"$f":"'À remplir'!B96","v":"Pellicule d'emballage pour une palette"},null,null,null,null,{"$f":"'À remplir'!I96","v":2.8000000000000003}]
[null,{"$f":"'À remplir'!B97","v":"Sacs"},null,null,null,null,{"$f":"'À remplir'!I97","v":69.3}]
[null,{"$f":"'À remplir'!B100","v":0},null,null,null,null,{"$f":"'À remplir'!I100","v":0}]
[null,{"$f":"'À remplir'!B101","v":0},null,null,null,null,{"$f":"'À remplir'!I101","v":0}]
[null,{"$f":"'À remplir'!B102","v":0},null,null,null,null,{"$f":"'À remplir'!I102","v":0}]
[null,{"$f":"'À remplir'!B103","v":0},null,null,null,null,{"$f":"'À remplir'!I103","v":0}]
[null,{"$f":"'À remplir'!B104","v":0},null,null,null,null,{"$f":"'À remplir'!I104","v":0}]
[null,{"$f":"'À remplir'!B105","v":0},null,null,null,null,{"$f":"'À remplir'!I105","v":0}]
[]
[]
[null,null,null,null,"Coût total mensuel",null,{"$f":"F39+F24","v":3300.9644141748918}]